[Event "12th National Schools-ch 2024"]
[Site "Gyan Bhawan Patna"]
[Date "2024.02.07"]
[Round "4.4"]
[White "Eshwar Veerappan Aiyappan"]
[Black "Andalamala Hemal Varshan"]
[Result "0-1"]
[ECO "B23"]
[WhiteElo "1304"]
[BlackElo "1578"]
[Annotator "NA RC"]
[PlyCount "92"]
[EventDate "2024.02.05"]
[EventCountry "IND"]
[SourceTitle "playchess.com"]
[Source "ChessBase"]
[SourceQuality "1"]
[TimeControl "5400+30"]

1. e4 {[%emt 0:00:22]} c5 {[%emt 0:00:08]} 2. Nc3 {[%emt 0:01:13]} g6 {[%emt 0:02:30]} 3. f4 {[%emt 0:00:46]} Bg7 {[%emt 0:02:05]} 4. Nf3 {[%emt 0:00:56]} Nc6 {[%emt 0:02:00]} 5. Bc4 {[%emt 0:01:44]} e6 {[%emt 0:02:16]} 6. f5 {[%emt 0:00:37]} Nge7 {[%emt 0:02:40]} 7. fxe6 {[%emt 0:01:37]} fxe6 {[%emt 0:02:35]} 8. d3 {[%emt 0:02:28]} d5 {[%emt 0:01:44]} 9. Bb3 {[%emt 0:01:14]} O-O {[%emt 0:04:01]} 10. O-O {[%emt 0:01:45]} Na5 {[%emt 0:08:32]} 11. Bg5 {[%emt 0:01:48]} d4 {[%emt 0:02:34]} 12. Ne2 {[%emt 0:01:53]} Nxb3 {[%emt 0:00:45]} 13. axb3 {[%emt 0:02:38]} e5 {[%emt 0:01:50]} 14. Qd2 {[%emt 0:02:04]} Qd6 {[%emt 0:05:20]} 15. Bh6 {[%emt 0:03:26]} Bg4 {[%emt 0:06:10]} 16. Bxg7 {[%emt 0:00:24]} Kxg7 {[%emt 0:00:02]} 17. Qg5 {[%emt 0:00:34]} Bxf3 {[%emt 0:00:33]} 18. gxf3 {[%emt 0:00:20]} h6 {[%emt 0:06:39]} 19. Qg3 {[%emt 0:01:11]} g5 {[%emt 0:00:31]} 20. h4 {[%emt 0:01:42]} Kh7 {[%emt 0:01:55]} 21. Kh2 {[%emt 0:03:58]} Rg8 {[%emt 0:07:30]} 22. Rg1 {[%emt 0:01:06]} a6 {[%emt 0:02:28]} 23. hxg5 {[%emt 1:08:14]} hxg5 {[%emt 0:06:37]} 24. Kg2 {[%emt 0:00:00]} Ng6 {[%emt 0:01:59]} 25. Kf2 {[%emt 0:00:00]} Nh4 {[%emt 0:00:55]} 26. Qg4 {[%emt 0:00:00]} Raf8 {[%emt 0:01:40]} 27. Rg3 {[%emt 0:00:00]} Rg6 {[%emt 0:02:54]} 28. Rh1 {[%emt 0:00:00]} Kg7 {[%emt 0:00:33]} 29. Qh5 {[%emt 0:00:00]} Rh8 {[%emt 0:02:40]} 30. Qg4 {[%emt 0:00:00]} Rf8 {[%emt 0:00:57]} 31. Qh5 {[%emt 0:00:00]} Rh8 {[%emt 0:00:50]} 32. Qg4 {[%emt 0:00:00]} b5 {[%emt 0:00:22]} 33. Ng1 {[%emt 0:00:00]} c4 {[%emt 0:02:33]} 34. bxc4 {[%emt 0:00:00]} bxc4 {[%emt 0:00:20]} 35. Nh3 {[%emt 0:00:00]} Qb4 {[%emt 0:01:25]} 36. Qd7+ {[%emt 0:00:00]} Kh6 {[%emt 0:02:43]} 37. Re1 {[%emt 0:00:00]} Rf8 {[%emt 0:03:34]} 38. Nxg5 {[%emt 0:00:00]} Rxg5 {[%emt 0:01:01]} 39. c3 {[%emt 0:00:00]} Qxb2+ {[%emt 0:00:14]} 40. Re2 {[%emt 0:00:00]} Rxf3+ {[%emt 0:00:10]} 41. Kg1 {[%emt 0:00:00]} Rgxg3+ {[%emt 0:00:30]} 42. Kh1 {[%emt 0:00:00]} Rf1+ {[%emt 0:00:50]} 43. Kh2 {[%emt 0:00:00]} Qxe2+ {[%emt 0:00:06]} 44. Kxg3 {[%emt 0:00:00]} Qg2+ {[%emt 0:00:30]} 45. Kxh4 {[%emt 0:00:00]} Rf4+ {[%emt 0:00:06]} 46. Qg4 {[%emt 0:00:00]} Qh2# {[%emt 0:00:09]} 0-1

[Event "12th National Schools-ch 2024"]
[Site "Gyan Bhawan Patna"]
[Date "2024.02.07"]
[Round "4.5"]
[White "Nivedita V C"]
[Black "Rudra Rajeev"]
[Result "1-0"]
[ECO "E01"]
[WhiteElo "1609"]
[BlackElo "1310"]
[Annotator "NA RC"]
[PlyCount "63"]
[EventDate "2024.02.05"]
[EventCountry "IND"]
[SourceTitle "playchess.com"]
[Source "ChessBase"]
[SourceQuality "1"]
[TimeControl "5400+30"]

1. d4 {[%emt 0:00:06]} d5 {[%emt 0:00:26]} 2. c4 {[%emt 0:00:04]} c6 {[%emt 0:00:35]} 3. Nc3 {[%emt 0:00:07]} Nf6 {[%emt 0:00:12]} 4. Nf3 {[%emt 0:00:06]} e6 {[%emt 0:00:45]} 5. g3 {[%emt 0:00:05]} Bd6 {[%emt 0:02:53]} 6. Bg2 {[%emt 0:00:26]} O-O {[%emt 0:01:11]} 7. O-O {[%emt 0:01:41]} Nbd7 {[%emt 0:02:55]} 8. Nd2 {[%emt 0:05:54]} Bc7 {[%emt 0:04:42]} 9. e4 {[%emt 0:00:30]} dxe4 {[%emt 0:02:11]} 10. Ndxe4 {[%emt 0:00:09]} e5 {[%emt 0:02:47]} 11. d5 {[%emt 0:03:29]} cxd5 {[%emt 0:01:19]} 12. cxd5 {[%emt 0:01:39]} Nxe4 {[%emt 0:02:14]} 13. Nxe4 {[%emt 0:00:44]} f5 {[%emt 0:01:47]} 14. Ng5 {[%emt 0:00:43]} Nf6 {[%emt 0:01:50]} 15. Qb3 {[%emt 0:08:54]} Qd6 {[%emt 0:04:22]} 16. Ne6 {[%emt 0:08:15]} Bxe6 {[%emt 0:01:49]} 17. dxe6 {[%emt 0:00:03]} Rfe8 {[%emt 0:06:18]} 18. Qxb7 {[%emt 0:06:08]} Rab8 {[%emt 0:03:16]} 19. Qxa7 {[%emt 0:01:00]} Bb6 {[%emt 0:01:20]} 20. Qf7+ {[%emt 0:01:45]} Kh8 {[%emt 0:00:22]} 21. Bh6 {[%emt 0:00:43]} gxh6 {[%emt 0:02:25]} 22. Qxf6+ {[%emt 0:00:06]} Kg8 {[%emt 0:00:10]} 23. Qxf5 {[%emt 0:01:46]} Rxe6 {[%emt 0:03:41]} 24. Rfd1 {[%emt 0:00:25]} Bd4 {[%emt 0:00:35]} 25. Rxd4 {[%emt 0:00:31]} exd4 {[%emt 0:00:52]} 26. Bd5 {[%emt 0:00:01]} Rbe8 {[%emt 0:00:21]} 27. Re1 {[%emt 0:00:06]} Kg7 {[%emt 0:00:28]} 28. Rxe6 {[%emt 0:00:28]} Rxe6 {[%emt 0:00:05]} 29. Qxe6 {[%emt 0:00:04]} Qxe6 {[%emt 0:00:26]} 30. Bxe6 {[%emt 0:00:05]} d3 {[%emt 0:00:08]} 31. Kf1 {[%emt 0:00:04]} d2 {[%emt 0:00:04]} 32. Ke2 {[%emt 0:00:02]} 1-0

[Event "12th National Schools-ch 2024"]
[Site "Gyan Bhawan Patna"]
[Date "2024.02.07"]
[Round "4.6"]
[White "Nimay Agrawal"]
[Black "Angsh Das"]
[Result "1-0"]
[ECO "C54"]
[WhiteElo "2067"]
[BlackElo "1299"]
[Annotator "TA"]
[PlyCount "74"]
[EventDate "2024.02.05"]
[EventCountry "IND"]
[SourceTitle "playchess.com"]
[Source "ChessBase"]
[SourceQuality "1"]
[TimeControl "5400+30"]

{[%evp 11,74,6,27,25,27,30,25,31,37,28,29,26,81,56,36,47,49,23,105,49,75,68,66,61,83,95,82,75,87,95,122,119,122,102,128,16,105,42,52,52,58,7,54,45,96,87,102,83,84,93,100,106,109,99,103,89,143,191,179,136,247,247,521,495,492]} 1. e4 {[%emt 0:00:08]} e5 {[%emt 0:00:16]} 2. Nf3 {[%emt 0:00:15]} Nc6 {[%emt 0:00:13]} 3. Bc4 {[%emt 0:01:01]} Bc5 {[%emt 0:00:22]} 4. c3 {[%emt 0:00:22]} Nf6 {[%emt 0:00:36]} 5. d3 {[%emt 0:00:19]} d6 {[%emt 0:00:58]} 6. Bb3 {[%emt 0:00:58]} Bg4 {[%emt 0:00:54][%cal Bc8g4,Bg4h5,Bh5g6][%mdl 32]} 7. h3 {[%emt 0:01:59]} Bh5 {[%emt 0:00:34]} 8. Nbd2 {[%emt 0:00:53]} h6 {[%emt 0:02:18]} 9. Qe2 {[%emt 0:05:43] White has an edge.} Qe7 {[%emt 0:02:29]} 10. Nf1 {[%emt 0:01:51]} a5 {[%emt 0:04:08]} 11. a4 {[%emt 0:05:24]} Rd8 {[%emt 0:01:30]} (11... Bg6 $11) 12. g4 {[%emt 0:06:00]} Bg6 {[%emt 0:00:34]} 13. Ng3 {[%emt 0:00:18]} Kd7 {[%emt 0:18:25]} 14. Bd2 {[%emt 0:20:53]} Rhe8 {[%emt 0:01:32]} (14... Kc8 $11 {keeps the balance.}) 15. Nf5 {[%emt 0:01:29]} (15. g5 $16) 15... Bxf5 {[%emt 0:01:43]} 16. gxf5 {[%emt 0:00:07]} Kc8 {[%emt 0:00:32]} 17. O-O-O {[%emt 0:06:51][%cal Ba1d1,Bd1g1,Bg1g2][%mdl 32]} d5 {[%emt 0:04:25]} 18. Rdg1 {[%emt 0:01:20]} dxe4 {[%emt 0:02:31]} 19. dxe4 {[%emt 0:00:09]} Rg8 {[%emt 0:03:14]} 20. Rg2 {[%emt 0:01:18]} Bb6 {[%emt 0:03:11]} 21. Rhg1 {[%emt 0:03:31]} Qf8 {[%emt 0:01:31]} 22. Nh2 {[%emt 0:01:55]} Rd6 {[%emt 0:10:57]} ({Avoid the trap} 22... Rxd2 $2 23. Kxd2 g6 24. fxg6 Rxg6 25. Rxg6 fxg6 26. Rxg6 $18) 23. Be3 {[%emt 0:07:47]} (23. Bc2 $16) 23... Nd7 {[%emt 0:13:18]} (23... Bxe3+ $11 {remains equal.} 24. Qxe3 Nh5) 24. Qc4 {[%emt 0:03:43]} (24. Ng4 $16 {[%cal Og4h6] Black must now prevent Nxh6!} Bxe3+ 25. Nxe3) 24... Bxe3+ $14 {[%emt 0:00:37]} 25. fxe3 {[%emt 0:00:56]} Nd8 {[%emt 0:00:15]} 26. Ba2 {[%emt 0:08:13]} ({White should play} 26. Nf3 $14) 26... Rc6 {[%emt 0:08:42]} (26... g5 $11) 27. Qb5 {[%emt 0:02:00]} Nc5 {[%emt 0:04:34]} ({Better is} 27... Rc5 $14 28. Qd3 Rc6) 28. Nf3 $36 {[%emt 0:04:18][%mdl 2048] Black is under strong pressure.} Rb6 {[%emt 0:06:50]} 29. Qc4 {[%emt 0:00:48]} Nd7 {[%emt 0:05:15]} 30. Qd5 {[%emt 0:05:22]} Rd6 {[%emt 0:02:04]} 31. Qxa5 {[%emt 0:02:44]} Ra6 {[%emt 0:00:06]} 32. Qb5 {[%emt 0:01:58][%cal Og1d1]} c6 {[%emt 0:00:05]} 33. Qb3 {[%emt 0:01:03] White is much more active.} Nc5 {[%emt 0:00:22] [#]} (33... Qc5 $142) 34. Qc2 $1 {[%emt 0:00:07]} Nxa4 {[%emt 0:01:13]} 35. Nxe5 {[%emt 0:01:03]} Qc5 {[%emt 0:01:11]} (35... Qe7 $16 36. Nf3 (36. Rxg7 $2 {loses.} Rxg7 37. Rxg7 Qxe5 $19) 36... Nc5) 36. Nxf7 $18 {[%emt 0:01:40]} (36. Bxf7 Rf8 37. Bc4 b5 $11) 36... Qxe3+ {[%emt 0:00:22]} (36... Nxf7 {was necessary.} 37. Bxf7 Rd8) 37. Qd2 {[%emt 0:00:34]} Qxd2+ {[%emt 0:01:13] Weighted Error Value: White=0.16 (very precise) /Black=0.36.  Mistake:       	White=4     	Black=8      Inaccurate:     	White=1     	Black=1      OK:         	White=12    	Black=13     Best:        	White=3     	Black=1} 1-0

[Event "12th National Schools-ch 2024"]
[Site "Gyan Bhawan Patna"]
[Date "2024.02.07"]
[Round "4.7"]
[White "Asudani Ruhani Raj"]
[Black "Aadya Gupta"]
[Result "0-1"]
[ECO "D10"]
[WhiteElo "1420"]
[BlackElo "1544"]
[Annotator "NA RC"]
[PlyCount "102"]
[EventDate "2024.02.05"]
[EventCountry "IND"]
[SourceTitle "playchess.com"]
[Source "ChessBase"]
[SourceQuality "1"]
[TimeControl "5400+30"]

1. d4 {[%emt 0:00:08]} d5 {[%emt 0:00:03]} 2. c4 {[%emt 0:00:07]} c6 {[%emt 0:00:03]} 3. cxd5 {[%emt 0:00:06]} cxd5 {[%emt 0:00:03]} 4. Bf4 {[%emt 0:00:07]} Nc6 {[%emt 0:00:04]} 5. e3 {[%emt 0:00:07]} Bf5 {[%emt 0:00:13]} 6. Nc3 {[%emt 0:00:09]} Nf6 {[%emt 0:00:27]} 7. Qb3 {[%emt 0:00:07]} Na5 {[%emt 0:06:24]} 8. Qa4+ {[%emt 0:01:47]} Bd7 {[%emt 0:01:37]} 9. Bb5 {[%emt 0:00:19]} Nc6 {[%emt 0:02:39]} 10. Qb3 {[%emt 0:05:29]} e6 {[%emt 0:01:05]} 11. Nf3 {[%emt 0:00:54]} Be7 {[%emt 0:00:31]} 12. O-O {[%emt 0:02:46]} O-O {[%emt 0:00:12]} 13. Na4 {[%emt 0:01:38]} Na5 {[%emt 0:05:53]} 14. Qd3 {[%emt 0:01:53]} Nc4 {[%emt 0:01:37]} 15. Bxd7 {[%emt 0:00:44]} Qxd7 {[%emt 0:01:23]} 16. b3 {[%emt 0:01:30]} Rfc8 {[%emt 0:09:39]} 17. bxc4 {[%emt 0:01:19]} Qxa4 {[%emt 0:00:05]} 18. c5 {[%emt 0:00:21]} b6 {[%emt 0:05:19]} 19. cxb6 {[%emt 0:08:05]} axb6 {[%emt 0:00:03]} 20. h3 {[%emt 0:01:41]} Ne4 {[%emt 0:02:16]} 21. Qb3 {[%emt 0:03:08]} b5 {[%emt 0:07:40]} 22. Rac1 {[%emt 0:05:18]} Rc4 {[%emt 0:07:19]} 23. Rxc4 {[%emt 0:03:32]} dxc4 {[%emt 0:01:07]} 24. Qb2 {[%emt 0:02:31]} c3 {[%emt 0:07:57]} 25. Qe2 {[%emt 0:04:38]} Ba3 {[%emt 0:05:49]} 26. Ne5 {[%emt 0:05:06]} c2 {[%emt 0:04:54]} 27. Nd3 {[%emt 0:00:35]} Nc3 {[%emt 0:01:01]} 28. Qg4 {[%emt 0:04:03]} f5 {[%emt 0:03:02]} 29. Qh5 {[%emt 0:01:28]} Qc4 {[%emt 0:00:47]} 30. Qf3 {[%emt 0:04:22]} Ne4 {[%emt 0:01:11]} 31. Qe2 {[%emt 0:01:19]} Qxa2 {[%emt 0:06:08]} 32. f3 {[%emt 0:01:42]} Nc3 {[%emt 0:02:59]} 33. Qe1 {[%emt 0:01:58]} Qc4 {[%emt 0:00:37]} 34. Qd2 {[%emt 0:03:40]} c1=Q {[%emt 0:01:18]} 35. Rxc1 {[%emt 0:00:31]} Bxc1 {[%emt 0:00:04]} 36. Nxc1 {[%emt 0:00:10]} Ra1 {[%emt 0:01:12]} 37. Kh2 {[%emt 0:00:27]} b4 {[%emt 0:03:01]} 38. Nd3 {[%emt 0:02:30]} Rd1 {[%emt 0:00:19]} 39. Nb2 {[%emt 0:00:17]} Rxd2 {[%emt 0:01:12]} 40. Nxc4 {[%emt 0:00:09]} Ra2 {[%emt 0:00:18]} 41. Be5 {[%emt 0:00:46]} b3 {[%emt 0:01:02]} 42. d5 {[%emt 0:01:28]} exd5 {[%emt 0:00:13]} 43. Bxc3 {[%emt 0:00:33]} dxc4 {[%emt 0:00:02]} 44. e4 {[%emt 0:00:14]} fxe4 {[%emt 0:00:02]} 45. fxe4 {[%emt 0:00:07]} b2 {[%emt 0:00:01]} 46. Bxb2 {[%emt 0:00:16]} Rxb2 {[%emt 0:14:39]} 47. e5 {[%emt 0:00:05]} c3 {[%emt 0:00:00]} 48. e6 {[%emt 0:00:04]} c2 {[%emt 0:00:00]} 49. e7 {[%emt 0:00:13]} Kf7 {[%emt 0:00:00]} 50. e8=Q+ {[%emt 0:00:07]} Kxe8 {[%emt 0:00:00]} 51. h4 {[%emt 0:00:10]} c1=Q {[%emt 0:00:00]} 0-1

[Event "12th National Schools-ch 2024"]
[Site "Gyan Bhawan Patna"]
[Date "2024.02.07"]
[Round "4.8"]
[White "Shreyas Raj"]
[Black "Arnav Agrawal"]
[Result "0-1"]
[ECO "B06"]
[WhiteElo "1644"]
[BlackElo "1610"]
[Annotator "NA RC"]
[PlyCount "106"]
[EventDate "2024.02.05"]
[EventCountry "IND"]
[SourceTitle "playchess.com"]
[Source "ChessBase"]
[SourceQuality "1"]
[TimeControl "5400+30"]

1. e4 {[%emt 0:00:03]} c5 {[%emt 0:00:08]} 2. c3 {[%emt 0:00:07]} d5 {[%emt 0:00:06]} 3. exd5 {[%emt 0:00:07]} Qxd5 {[%emt 0:00:06]} 4. d4 {[%emt 0:00:12]} g6 {[%emt 0:00:03]} 5. Nf3 {[%emt 0:00:53]} Bg7 {[%emt 0:00:09]} 6. Na3 {[%emt 0:02:13]} cxd4 {[%emt 0:01:07]} 7. Nb5 {[%emt 0:02:00]} Qd8 {[%emt 0:01:56]} 8. Bf4 {[%emt 0:04:36]} Na6 {[%emt 0:00:56]} 9. Nbxd4 {[%emt 0:01:28]} Nf6 {[%emt 0:00:29]} 10. Bxa6 {[%emt 0:03:08]} bxa6 {[%emt 0:00:08]} 11. Qa4+ {[%emt 0:00:51]} Nd7 {[%emt 0:06:59]} 12. O-O {[%emt 0:07:49]} Qb6 {[%emt 0:03:16]} 13. Rfe1 {[%emt 0:04:22]} O-O {[%emt 0:08:47]} 14. Nc6 {[%emt 0:05:12]} Nc5 {[%emt 0:02:08]} 15. Nxe7+ {[%emt 0:00:32]} Kh8 {[%emt 0:00:05]} 16. Qc2 {[%emt 0:13:03]} Bb7 {[%emt 0:05:46]} 17. Rad1 {[%emt 0:09:46]} Rad8 {[%emt 0:04:19]} 18. Ne5 {[%emt 0:07:50]} Rxd1 {[%emt 0:02:22]} 19. Rxd1 {[%emt 0:10:17]} Qe6 {[%emt 0:01:20]} 20. Re1 {[%emt 0:04:04]} Qf6 {[%emt 0:01:45]} 21. Bg3 {[%emt 0:01:03]} h5 {[%emt 0:19:15]} 22. c4 {[%emt 0:21:54]} Kh7 {[%emt 0:13:10]} 23. Nd5 {[%emt 0:00:00]} Qd8 {[%emt 0:01:35]} 24. Rd1 {[%emt 0:00:00]} h4 {[%emt 0:01:23]} 25. Bf4 {[%emt 0:00:00]} Ne6 {[%emt 0:00:13]} 26. Qe4 {[%emt 0:00:00]} f5 {[%emt 0:01:39]} 27. Qf3 {[%emt 0:00:00]} Nxf4 {[%emt 0:02:01]} 28. Qxf4 {[%emt 0:00:00]} g5 {[%emt 0:00:08]} 29. Qd4 {[%emt 0:00:00]} Re8 {[%emt 0:01:35]} 30. Nf7 {[%emt 0:00:00]} Qa5 {[%emt 0:01:19]} 31. b4 {[%emt 0:00:00]} Bxd4 {[%emt 0:15:34]} 32. bxa5 {[%emt 0:00:00]} Bxd5 {[%emt 0:00:06]} 33. cxd5 {[%emt 0:00:00]} Kg6 {[%emt 0:00:12]} 34. Kf1 {[%emt 0:04:40]} Bc5 {[%emt 0:00:18]} 35. Rc1 {[%emt 0:00:18]} Bb4 {[%emt 0:00:06]} 36. Rb1 {[%emt 0:00:11]} Bxa5 {[%emt 0:01:40]} 37. Nd6 {[%emt 0:00:08]} Rd8 {[%emt 0:00:46]} 38. Nc4 {[%emt 0:01:18]} Rxd5 {[%emt 0:00:06]} 39. Rb7 {[%emt 0:01:19]} Rd1+ {[%emt 0:03:43]} 40. Ke2 {[%emt 0:00:05]} Ra1 {[%emt 0:00:12]} 41. Rb2 {[%emt 0:00:51]} Bc3 {[%emt 0:00:35]} 42. Rc2 {[%emt 0:00:07]} Bf6 {[%emt 0:00:14]} 43. Ne3 {[%emt 0:00:59]} a5 {[%emt 0:00:39]} 44. Nd5 {[%emt 0:00:28]} Be5 {[%emt 0:01:00]} 45. f4 {[%emt 0:00:32]} gxf4 {[%emt 0:00:17]} 46. Kf3 {[%emt 0:00:13]} Kg5 {[%emt 0:01:09]} 47. Rc8 {[%emt 0:00:49]} Rxa2 {[%emt 0:00:36]} 48. Rg8+ {[%emt 0:00:10]} Kh6 {[%emt 0:00:31]} 49. Ne7 {[%emt 0:00:14]} Kh7 {[%emt 0:01:22]} 50. Rg5 {[%emt 0:00:11]} Ra3+ {[%emt 0:00:14]} 51. Ke2 {[%emt 0:00:22]} Bf6 {[%emt 0:00:51]} 52. Rxf5 {[%emt 0:00:19]} Re3+ {[%emt 0:00:05]} 53. Kf2 {[%emt 0:00:14]} Bxe7 {[%emt 0:00:06]} 0-1

[Event "12th National Schools-ch 2024"]
[Site "Gyan Bhawan Patna"]
[Date "2024.02.07"]
[Round "4.9"]
[White "Anupam M Sreekumar"]
[Black "Sindhusree K"]
[Result "1/2-1/2"]
[ECO "B92"]
[WhiteElo "1642"]
[BlackElo "1445"]
[Annotator "NA RC"]
[PlyCount "80"]
[EventDate "2024.02.05"]
[EventCountry "IND"]
[SourceTitle "playchess.com"]
[Source "ChessBase"]
[SourceQuality "1"]
[TimeControl "5400+30"]

1. e4 {[%emt 0:00:23]} c5 {[%emt 0:00:12]} 2. Nf3 {[%emt 0:00:13]} d6 {[%emt 0:00:05]} 3. d4 {[%emt 0:02:50]} cxd4 {[%emt 0:00:06]} 4. Nxd4 {[%emt 0:00:08]} Nf6 {[%emt 0:00:11]} 5. Nc3 {[%emt 0:00:26]} a6 {[%emt 0:00:06]} 6. f3 {[%emt 0:02:53]} e5 {[%emt 0:00:16]} 7. Nb3 {[%emt 0:01:37]} Be7 {[%emt 0:00:53]} 8. Be3 {[%emt 0:01:29]} Be6 {[%emt 0:00:06]} 9. Be2 {[%emt 0:03:36]} Nbd7 {[%emt 0:03:43]} 10. O-O {[%emt 0:02:45]} O-O {[%emt 0:00:33]} 11. a4 {[%emt 0:04:50]} Qc7 {[%emt 0:07:08]} 12. a5 {[%emt 0:02:46]} Rac8 {[%emt 0:08:40]} 13. Qd2 {[%emt 0:06:47]} Qc6 {[%emt 0:13:50]} 14. Rfd1 {[%emt 0:02:49]} Rfd8 {[%emt 0:03:47]} 15. Nc1 {[%emt 0:07:32]} Qc7 {[%emt 0:25:52]} 16. N1a2 {[%emt 0:03:08]} Qxa5 {[%emt 0:01:11]} 17. Kh1 {[%emt 0:13:47]} Kh8 {[%emt 0:04:15]} 18. g4 {[%emt 0:04:34]} Nf8 {[%emt 0:02:08]} 19. h4 {[%emt 0:03:17]} d5 {[%emt 0:02:21]} 20. Nxd5 {[%emt 0:08:30]} Qxd2 {[%emt 0:00:07]} 21. Bxd2 {[%emt 0:04:36]} Nxd5 {[%emt 0:03:43]} 22. exd5 {[%emt 0:00:12]} Rxd5 {[%emt 0:01:19]} 23. Nc3 {[%emt 0:01:17]} Rd7 {[%emt 0:00:44]} 24. h5 {[%emt 0:01:39]} Rcd8 {[%emt 0:00:25]} 25. Bd3 {[%emt 0:00:46]} Bb4 {[%emt 0:01:25]} 26. Re1 {[%emt 0:02:54]} f6 {[%emt 0:00:21]} 27. h6 {[%emt 0:01:22]} Bc4 {[%emt 0:04:09]} 28. hxg7+ {[%emt 0:00:28]} Kxg7 {[%emt 0:00:15]} 29. g5 {[%emt 0:03:06]} Bxd3 {[%emt 0:01:55]} 30. gxf6+ {[%emt 0:00:03]} Kxf6 {[%emt 0:00:02]} 31. cxd3 {[%emt 0:00:12]} Bxc3 {[%emt 0:01:24]} 32. Bxc3 {[%emt 0:00:08]} Ng6 {[%emt 0:03:18]} 33. f4 {[%emt 0:15:57]} Rxd3 {[%emt 0:12:30]} 34. fxe5+ Ke6 {[%emt 0:00:30]} 35. Rf1 {[%emt 0:01:00]} Rh3+ {[%emt 0:00:30]} 36. Kg2 {[%emt 0:00:30]} Rdd3 37. Rf6+ {[%emt 0:00:30]} Ke7 {[%emt 0:01:00]} 38. Bb4+ Ke8 {[%emt 0:00:30]} 39. Rc1 {[%emt 0:01:00]} Nh4+ {[%emt 0:00:30]} 40. Kg1 {[%emt 0:00:30]} Rdg3+ {[%emt 0:00:30]} 1/2-1/2

[Event "12th National Schools-ch 2024"]
[Site "Gyan Bhawan Patna"]
[Date "2024.02.07"]
[Round "4.10"]
[White "Adhiraj Mitra"]
[Black "Shadhursshaan R"]
[Result "0-1"]
[ECO "B17"]
[WhiteElo "1549"]
[BlackElo "2058"]
[Annotator "RC"]
[PlyCount "88"]
[EventDate "2024.02.05"]
[EventCountry "IND"]
[SourceTitle "playchess.com"]
[Source "ChessBase"]
[SourceQuality "1"]
[TimeControl "5400+30"]

1. e4 {[%emt 0:00:02]} c6 {[%emt 0:00:21]} 2. d4 {[%emt 0:00:03]} d5 {[%emt 0:00:09]} 3. Nc3 {[%emt 0:00:06]} dxe4 {[%emt 0:00:05]} 4. Nxe4 {[%emt 0:00:04]} Nd7 {[%emt 0:00:18]} 5. Nf3 {[%emt 0:00:31]} Ngf6 {[%emt 0:00:29]} 6. Bd3 {[%emt 0:00:14]} Nxe4 {[%emt 0:00:17]} 7. Bxe4 {[%emt 0:00:01]} Nf6 {[%emt 0:00:17]} 8. Bd3 {[%emt 0:00:08]} Bg4 {[%emt 0:00:05]} 9. c3 {[%emt 0:00:10]} e6 {[%emt 0:00:05]} 10. h3 {[%emt 0:01:33]} Bh5 {[%emt 0:00:02]} 11. O-O {[%emt 1:33:08]} Bd6 {[%emt 0:05:17]} 12. Kh1 {[%emt 0:00:00]} Nd7 {[%emt 0:02:43]} 13. Be2 {[%emt 0:00:00]} Bg6 {[%emt 0:01:03]} 14. Be3 {[%emt 0:00:00]} Qc7 {[%emt 0:02:48]} 15. c4 {[%emt 0:00:00]} c5 {[%emt 0:06:06]} 16. Qd2 {[%emt 0:00:00]} O-O {[%emt 0:04:49]} 17. Rad1 {[%emt 0:00:00]} Rfd8 {[%emt 0:03:02]} 18. Qc3 {[%emt 0:00:00]} Nf6 {[%emt 0:01:30]} 19. Qb3 {[%emt 0:00:00]} Ne4 {[%emt 0:09:38]} 20. Bd3 {[%emt 0:00:00]} cxd4 {[%emt 0:01:09]} 21. Nxd4 {[%emt 0:00:00]} Nc5 {[%emt 0:00:00]} 22. Nb5 {[%emt 0:00:00]} Qc6 {[%emt 0:05:34]} 23. Bxc5 {[%emt 0:00:00]} Bxc5 {[%emt 0:00:03]} 24. Bxg6 {[%emt 0:00:00]} hxg6 {[%emt 0:00:02]} 25. Nc3 {[%emt 0:00:00]} Bb6 {[%emt 0:02:17]} 26. Qb5 {[%emt 0:00:00]} Rxd1 {[%emt 0:00:43]} 27. Rxd1 {[%emt 0:00:00]} Bxf2 {[%emt 0:05:16]} 28. Qxc6 {[%emt 0:00:00]} bxc6 {[%emt 0:00:02]} 29. Rd6 {[%emt 0:00:00]} Bg3 {[%emt 0:06:04]} 30. Rd7 {[%emt 0:00:00]} Be5 {[%emt 0:00:46]} 31. Na4 {[%emt 0:00:00]} Kf8 {[%emt 0:01:15]} 32. g4 {[%emt 0:00:00]} Ke8 {[%emt 0:02:25]} 33. Rb7 {[%emt 0:00:00]} Rb8 {[%emt 0:00:31]} 34. Rxa7 {[%emt 0:00:00]} Bxb2 {[%emt 0:00:02]} 35. Ra6 {[%emt 0:00:00]} Bd4 {[%emt 0:00:19]} 36. c5 {[%emt 0:00:00]} Rb4 {[%emt 0:00:32]} 37. g5 {[%emt 0:00:00]} e5 {[%emt 0:00:28]} 38. Kg2 {[%emt 0:00:00]} e4 {[%emt 0:00:24]} 39. h4 {[%emt 0:00:00]} Rc4 {[%emt 0:00:38]} 40. Kf1 {[%emt 0:00:00]} e3 {[%emt 0:00:22]} 41. a3 {[%emt 0:00:00]} f5 {[%emt 0:00:22]} 42. gxf6 {[%emt 0:00:00]} gxf6 {[%emt 0:00:08]} 43. Ke2 {[%emt 0:00:00]} Rc2+ {[%emt 0:00:11]} 44. Kd1 {[%emt 0:00:00]} e2+ {[%emt 0:00:16]} 0-1